bitfinex/quotes_ETHUSD_20210401
["timestamp","ask_amount","ask_price","bid_price","bid_amount"]
[1617310667481,29.24,1968.0,1967.9,0.56183805]
[1617310667681,30.748,1968.0,1967.9,0.56183805]
[1617310668278,38.68427845,1968.0,1967.9,0.56183805]
[1617310668481,42.68427845,1968.0,1967.9,3.805e-05]
[1617310668678,50.31121845,1968.0,1967.1,1.0]
[1617310668918,9.89,1967.2,1967.1,1.0]
[1617310669114,17.7976,1967.2,1967.1,1.0]
[1617310670509,8.2976,1967.2,1967.1,1.0]
[1617310670710,8.5776,1967.2,1967.1,1.0]
[1617310670911,14.1276,1967.2,1967.1,0.95]
[1617310671112,8.9776,1967.2,1967.1,0.95]
[1617310671312,8.5776,1967.2,1967.1,0.95]
[1617310672134,8.9576,1967.2,1967.1,0.95]
[1617310672540,8.6776,1967.2,1967.1,0.95]
[1617310672941,12.69699536,1967.2,1967.1,0.95]
[1617310673540,24.59699536,1967.2,1967.1,0.95]
[1617310673739,12.69699536,1967.2,1967.1,0.95]
[1617310674183,13.72739913,1967.2,1967.1,0.95]
[1617310674580,18.92739913,1967.2,1967.1,0.95]
[1617310674979,13.72739913,1967.2,1967.1,0.95]
[1617310675380,12.69699536,1967.2,1967.1,0.95]
[1617310675579,22.86865536,1967.2,1967.1,0.95]
[1617310676181,8.9576,1967.2,1967.1,0.95]
[1617310676787,9.96533183,1967.2,1967.1,0.95]
[1617310676983,8.9576,1967.2,1967.1,0.95]
[1617310677583,15.5076,1967.2,1967.1,0.95]
[1617310677785,8.5776,1967.2,1967.1,0.95]
[1617310678783,8.5776,1967.2,1967.1,0.9]
[1617310679405,8.2976,1967.2,1967.1,0.9]
[1617310679604,10.59516,1967.3,1967.1,0.9]
[1617310679803,10.11466,1967.3,1967.1,0.9]
[1617310680004,8.96296,1967.3,1967.1,0.9]
[1617310680205,7.62846,1967.3,1967.1,0.9]
[1617310680606,7.62846,1967.3,1967.1,1.29]
[1617310680805,10.17004,1967.5,1967.1,1.29]
[1617310681007,26.9388,1967.6,1967.1,1.29]
[1617310681406,34.56523,1967.6,1967.3,0.39]
[1617310681607,5.18,1967.5,1967.3,0.39]
[1617310682432,14.4498,1967.8,1967.3,0.39]
[1617310682636,14.558359,1967.8,1967.5,0.38]
[1617310682834,14.558359,1967.8,1967.7,13.69]
[1617310682835,0.108559,1967.8,1967.7,13.69]
[1617310683033,0.108559,1967.8,1967.7,0.39]
[1617310683235,0.388559,1967.8,1967.2,0.09132494]
[1617310683434,0.42,1967.7,1967.2,0.09132494]
[1617310683636,0.108559,1967.8,1967.1,5.98253]
[1617310683833,0.81,1967.7,1967.1,5.98253]
[1617310684031,0.42,1967.7,1967.1,6.37253]
[1617310684433,0.42,1967.7,1967.1,6.46385494]
[1617310684667,0.42,1967.7,1967.1,9.42385494]
[1617310684863,0.42,1967.7,1967.1,6.46385494]
[1617310685065,0.28,1967.6,1967.3,0.38]
[1617310685466,7.734079,1967.8,1967.5,8.54]
[1617310685668,0.437559,1967.8,1967.6,0.41]
[1617310685866,0.108559,1967.8,1967.6,0.41]
[1617310686465,0.108559,1967.8,1967.6,0.36]
[1617310686666,0.108559,1967.8,1967.5,8.15]
[1617310687882,0.108559,1967.8,1967.6,0.39]
[1617310688287,0.108559,1967.8,1967.7,25.1]
[1617310688492,0.108559,1967.8,1967.7,28.86]
[1617310690109,0.108559,1967.8,1967.7,36.48221]
[1617310691404,0.108559,1967.8,1967.7,28.86]
[1617310691807,0.108559,1967.8,1967.7,35.2618]
[1617310692630,0.108559,1967.8,1967.7,42.88356]
[1617310693432,0.108559,1967.8,1967.7,18.18356]
[1617310693632,0.108559,1967.8,1967.7,3.76]
[1617310694031,0.108559,1967.8,1967.7,0.39]
[1617310694432,0.108559,1967.8,1967.7,18.09]
[1617310695259,0.108559,1967.8,1967.7,18.07065]
[1617310695460,0.108559,1967.8,1967.7,22.39065]
[1617310696460,0.108559,1967.8,1967.7,30.01265]
[1617310696663,12.5165,1968.6,1967.8,28.85]
[1617310696867,0.2,1968.6,1968.2,0.39]
[1617310697065,0.2,1968.6,1968.5,24.05]
[1617310697265,0.2,1968.6,1968.5,27.65]
[1617310697461,0.2,1968.6,1968.5,3.6]
[1617310697691,0.2,1968.6,1968.4,10.15833]
[1617310697886,0.2,1968.6,1968.4,3.80922]
[1617310698486,0.2,1968.6,1968.5,17.95]
[1617310698685,0.2,1968.6,1968.5,21.27]
[1617310699285,0.2,1968.6,1968.5,3.32]
[1617310699485,0.2,1968.6,1968.4,3.80922]
[1617310700506,6.17332896,1969.3,1968.2,0.09132494]
[1617310700705,6.17332896,1969.3,1968.5,0.4]
[1617310700905,0.42,1969.0,1968.6,0.39]
[1617310701105,0.4,1969.2,1968.6,0.39]
[1617310701303,0.7,1969.0,1968.6,0.39]
[1617310701505,0.7,1969.0,1968.4,0.09132494]
[1617310701704,0.4,1969.1,1968.4,0.09132494]
[1617310701705,0.539,1968.9,1968.5,0.4]
[1617310707759,0.539,1968.9,1968.6,0.41]
[1617310708189,0.539,1968.9,1968.4,3.31132494]
[1617310708386,0.539,1968.9,1968.4,3.72132494]
[1617310709188,0.539,1968.9,1968.5,0.39]
[1617310709789,0.919,1968.9,1968.4,3.31132494]
[1617310711006,0.38,1968.9,1968.4,3.69132494]
[1617310712008,0.38,1968.9,1968.4,3.31132494]
[1617310712209,0.66,1968.9,1968.4,3.31132494]
[1617310712610,0.28,1968.9,1968.4,3.69132494]
[1617310713211,0.38,1969.0,1968.4,3.69132494]
[1617310713833,0.38,1969.0,1968.4,4.89132494]
[1617310714432,0.674,1969.0,1968.4,4.89132494]
[1617310714633,0.674,1969.0,1968.5,3.80977]
[1617310714834,0.41,1968.8,1968.5,3.80977]
[1617310715036,0.41,1968.7,1968.3,1.29132494]
[1617310715238,0.41,1968.7,1968.3,6.30132494]
[1617310715438,0.39,1968.6,1968.3,6.30132494]
[1617310715640,0.42,1968.5,1968.2,0.09132494]
[1617310715840,0.4,1968.3,1967.8,0.09132494]
[1617310716073,0.42,1968.2,1967.7,10.15961]
[1617310716267,0.42,1968.2,1967.7,3.14]
[1617310716466,0.42,1968.2,1967.7,0.39]
[1617310716865,7.62309,1968.2,1967.7,0.39]
[1617310717066,7.4363,1968.3,1967.7,4.20125]
[1617310717267,7.4363,1968.3,1967.7,5.40125]
[1617310717870,6.0533,1968.3,1967.9,8.03157]
[1617310718070,6.0533,1968.3,1968.2,20.65]
[1617310718071,4.9751,1968.3,1968.2,20.65]
[1617310718269,14.0429,1968.8,1968.2,20.65]
[1617310718270,14.0429,1968.8,1968.2,26.91]
[1617310718469,12.5436,1969.1,1968.4,3.81003]
[1617310718692,0.427,1969.0,1968.4,8.82003]
[1617310718885,0.427,1969.0,1968.4,4.22003]
[1617310719086,8.04731,1969.0,1968.4,4.22003]
[1617310719282,0.427,1968.8,1968.2,33.31]
[1617310719483,0.807,1968.8,1968.2,25.71]
[1617310719682,0.273,1968.7,1968.3,0.09132494]
[1617310719882,0.273,1968.7,1968.3,3.95132494]
[1617310720482,8.00078,1968.8,1968.3,3.95132494]
[1617310720682,8.28778,1968.8,1968.3,3.86]
[1617310721509,0.41,1968.5,1968.3,3.86]
[1617310721709,0.41,1968.5,1968.1,8.82039]
[1617310722109,0.4,1968.7,1968.2,0.09132494]
[1617310722308,0.4,1968.7,1968.1,9.30171494]
[1617310722510,0.4,1968.7,1968.1,9.21039]
[1617310722710,0.4,1968.7,1968.1,10.41039]
[1617310722912,0.7,1968.8,1968.4,0.39]
[1617310723112,7.62101,1968.9,1968.4,0.39]
[1617310723942,8.00101,1968.9,1968.2,14.21]
[1617310724141,8.00101,1968.9,1968.4,11.43014]
[1617310724340,0.38,1968.9,1968.4,11.43014]
[1617310725343,12.1436,1969.1,1968.5,7.61967]
[1617310725543,0.38,1969.0,1968.5,7.61967]
[1617310725744,0.38,1969.0,1968.5,9.6513963]
[1617310725942,0.38,1969.0,1968.5,2.0317263]
[1617310726141,0.38,1969.0,1968.5,3.4302263]
[1617310726340,0.716,1969.0,1968.5,3.4302263]
[1617310726568,12.1436,1969.1,1968.6,0.41]
[1617310726766,12.1436,1969.1,1968.6,8.02901]
[1617310726965,0.38,1969.2,1968.6,8.02901]
[1617310727165,0.807,1969.2,1968.6,11.83871]
[1617310727368,0.807,1969.2,1968.6,7.4397]
[1617310727765,0.807,1969.2,1968.6,11.11037318]
[1617310727968,0.807,1969.2,1968.8,7.61823]
[1617310728167,0.807,1969.2,1968.8,16.14303]
[1617310728570,1.0,1969.4,1969.0,0.38]
[1617310728969,1.0,1969.4,1969.1,7.61694]
[1617310729392,1.0,1969.4,1969.1,15.61694]
[1617310729591,1.0,1969.4,1969.1,11.58]
[1617310729792,1.0,1969.4,1969.1,11.98]
[1617310730393,1.4,1969.9,1969.3,29.25]
[1617310730597,1.4,1969.9,1969.8,26.05]
[1617310730598,1.0,1969.9,1969.8,26.05]
[1617310730795,1.0,1969.9,1969.8,32.4804]
[1617310730997,6.16666657,1970.0,1969.8,32.4804]
[1617310731193,6.16666657,1970.0,1969.9,26.44585354]
[1617310731817,6.16666657,1970.0,1969.9,22.8]
[1617310732416,6.16666657,1970.0,1969.9,29.95]
[1617310733426,1.0,1970.4,1970.3,28.13]
[1617310733624,1.0,1970.4,1970.3,35.0544]
[1617310733822,1.0,1970.4,1970.3,11.5044]
[1617310734223,1.0,1970.4,1970.3,7.3044]
[1617310734467,1.0,1970.4,1970.3,14.91652]
[1617310734861,1.0,1970.4,1970.3,25.46652]
[1617310735066,1.0,1970.4,1970.3,14.91652]
[1617310736464,1.0,1970.4,1970.3,17.69652]
[1617310738466,12.0,1970.9,1970.4,28.85]
[1617310738671,12.371,1970.9,1970.7,0.41]
[1617310738869,12.0,1970.9,1970.7,0.41]
[1617310739068,12.28,1970.9,1970.7,0.41]
[1617310739465,12.28,1970.9,1970.5,6.58]
[1617310739693,12.0,1970.9,1970.6,0.4]
[1617310742091,12.0,1970.9,1970.7,13.3997]
[1617310745542,12.28,1970.9,1970.7,13.3997]
[1617310745741,12.28,1970.9,1970.7,8.3897]
[1617310746344,15.75,1970.8,1970.7,8.3897]
[1617310746543,0.4,1970.8,1970.7,8.3897]
[1617310747762,0.4,1970.8,1970.6,1.192]
[1617310747962,0.4,1970.8,1970.3,11.9344]
[1617310747963,12.0,1970.9,1970.5,5.01]
[1617310748164,12.4,1970.9,1970.5,5.01]
[1617310748766,12.4,1970.9,1970.3,10.01]
[1617310748767,0.39,1970.8,1970.3,10.01]
[1617310750610,12.371,1970.9,1970.3,10.01]
[1617310750810,12.771,1970.9,1970.3,10.39]
[1617310751211,0.41,1970.8,1970.3,10.01]
[1617310751412,0.38,1970.7,1970.3,10.01]
[1617310751613,12.0,1970.9,1970.3,10.01]
[1617310751815,12.4,1970.9,1970.5,5.01]
[1617310752014,12.4,1970.9,1970.5,14.3376]
[1617310752412,12.4,1970.9,1970.5,22.3376]
[1617310752817,12.4,1970.9,1970.6,5.01]
[1617310753020,12.4,1970.9,1970.7,5.01]
[1617310753414,12.0,1970.9,1970.7,5.01]
[1617310754414,12.0,1970.9,1970.7,12.62038]
[1617310757846,12.0,1970.9,1970.5,18.1576]
[1617310758070,12.0,1970.9,1970.5,31.1576]
[1617310758265,12.4,1970.9,1970.5,31.1576]
[1617310758465,12.0,1970.9,1970.5,31.5476]
[1617310758665,12.0,1970.9,1970.5,31.1576]
[1617310759667,12.0,1970.9,1970.6,4.72]
[1617310759868,12.4,1970.9,1970.6,4.72]
[1617310760467,12.4,1970.9,1970.6,12.3308]
[1617310760896,12.4,1970.9,1970.6,4.72]
[1617310761097,12.4,1970.9,1970.5,10.01]
[1617310761497,12.4,1970.9,1970.5,17.6216]
[1617310761701,0.41,1970.7,1970.5,10.01]
[1617310761902,0.41,1970.7,1969.8,20.98542361]
[1617310761903,23.02105014,1970.6,1969.2,0.09132494]
[1617310762103,0.4,1970.1,1969.8,5.0]
[1617310762305,0.413,1970.0,1969.8,5.0]
[1617310762606,8.8123,1970.0,1969.8,5.0]
[1617310762801,8.8123,1970.0,1969.2,1.29132494]
[1617310763002,8.8123,1970.0,1969.2,4.25132494]
[1617310763003,0.39,1969.7,1969.2,4.25132494]
[1617310763420,0.39,1969.7,1969.3,3.80759]
[1617310763620,8.3993,1970.0,1969.3,3.80759]
[1617310763621,0.4,1969.8,1969.4,1.2]
[1617310763819,0.4,1969.8,1969.5,7.61504]
[1617310764419,0.4,1969.8,1969.5,3.80724]
[1617310764620,0.4,1969.8,1969.4,0.09132494]
[1617310764819,0.4,1969.8,1969.4,10.35554]
[1617310765420,0.4,1969.8,1969.4,10.74]
[1617310765623,6.455,1970.1,1969.6,5.01]
[1617310765825,0.41,1970.0,1969.6,5.01]
[1617310766046,0.41,1970.0,1969.6,12.62493]
[1617310767647,0.4,1969.9,1969.6,12.62493]
[1617310767848,0.4,1969.8,1969.7,5.01]
[1617310768047,0.4,1969.8,1969.6,11.03493]
[1617310768246,0.4,1969.8,1969.6,3.42]
[1617310768450,0.4,1969.8,1969.5,10.15242]
[1617310769473,0.4,1969.8,1969.7,5.01]
[1617310769673,0.4,1969.8,1969.5,5.01]
[1617310770273,9.8508,1969.8,1969.5,5.01]
[1617310770672,0.41,1969.6,1969.5,5.01]
[1617310771496,10.2579,1969.8,1969.5,5.01]
[1617310771696,10.6479,1969.8,1969.3,5.01]
[1617310771895,10.6479,1969.8,1969.2,5.4]
[1617310772095,9.8408,1969.8,1969.3,5.01]
[1617310772295,9.8408,1969.8,1969.4,5.01]
[1617310773097,9.8408,1969.8,1969.4,7.61556]
[1617310773922,0.4,1969.7,1969.4,7.61556]
[1617310775124,0.4,1969.7,1969.4,12.62556]
[1617310775924,0.38,1969.9,1969.4,13.02556]
[1617310776960,0.38,1969.8,1969.4,12.62556]
[1617310777566,0.38,1969.8,1969.4,5.01]
[1617310777761,0.28,1969.9,1969.4,5.01]
[1617310777966,0.28,1969.9,1969.4,12.6254]
[1617310779639,26.1533,1970.3,1969.6,5.4]
[1617310779843,0.28,1970.2,1969.6,5.4]
[1617310780039,0.67,1970.2,1969.7,7.61413]
[1617310780637,0.28,1970.2,1969.7,7.99413]
[1617310780837,0.68,1970.2,1969.7,7.99413]
[1617310781038,0.68,1970.2,1969.7,7.61413]
[1617310781239,0.68,1970.2,1969.8,7.6138]
[1617310787850,0.4,1970.1,1969.8,7.6138]
[1617310788053,0.68,1970.1,1969.8,7.6138]
[1617310788253,0.68,1970.1,1969.7,3.80707]
[1617310788452,0.41,1970.0,1969.7,3.80707]
[1617310789255,0.41,1970.0,1969.6,5.01]
[1617310789458,0.38,1969.9,1969.7,5.01]
[1617310789679,0.39,1969.8,1969.6,5.01]
[1617310789880,0.39,1969.8,1969.4,5.01]
[1617310790581,10.77475014,1970.2,1969.4,5.01]
[1617310790780,0.28,1969.9,1969.4,5.01]
[1617310790981,0.68,1969.9,1969.4,5.01]
[1617310791381,0.39,1969.8,1969.4,5.01]
[1617310791581,0.39,1969.8,1969.5,5.01]
[1617310795742,0.39,1969.8,1969.5,12.62531]
[1617310795942,0.28,1969.9,1969.5,5.01]
[1617310796544,0.39,1969.8,1969.5,5.01]
[1617310796745,8.00667,1969.8,1969.5,5.01]
[1617310796944,4.14,1969.7,1969.4,5.01]
[1617310797147,4.14,1969.7,1969.5,5.01]
[1617310797755,0.28,1969.9,1969.5,12.6255]
[1617310798755,0.28,1969.9,1969.5,7.6155]
[1617310799158,0.28,1969.9,1969.4,7.61585]
[1617310799358,0.8,1969.8,1969.4,3.80772]
[1617310799557,0.8,1969.8,1969.3,10.154]
[1617310799957,0.28,1969.6,1969.3,10.154]
[1617310801177,0.38,1969.8,1969.3,15.164]
[1617310801377,13.81577014,1970.1,1969.3,22.84186]
[1617310801378,0.28,1969.9,1969.3,22.84186]
[1617310802176,0.28,1969.9,1969.3,26.64965]
[1617310802380,0.28,1969.9,1969.4,7.61553]
[1617310802800,0.28,1969.9,1969.4,12.73553]
[1617310803001,0.68,1969.9,1969.4,12.73553]
[1617310803201,0.68,1969.9,1969.4,7.61553]
[1617310804003,0.28,1969.9,1969.4,8.00553]
[1617310804204,0.28,1969.9,1969.6,0.39]
[1617310804406,0.28,1969.9,1969.6,4.19743]
[1617310804709,0.67,1970.2,1969.8,7.61425]
[1617310805727,0.28,1970.2,1969.8,11.4211]
[1617310805927,0.28,1970.2,1969.8,3.80685]
[1617310806527,0.68,1970.2,1969.8,3.80685]
[1617310807126,0.68,1970.2,1970.0,7.61346]
[1617310807327,0.68,1970.2,1969.9,3.80673]
[1617310807632,0.68,1970.2,1969.8,3.80685]
[1617310808053,0.68,1970.2,1969.8,7.08685]
[1617310808252,0.68,1970.2,1970.0,7.61356]
[1617310808453,0.28,1970.2,1970.0,7.61356]
[1617310809256,0.67,1970.2,1969.8,10.89363]
[1617310809858,0.67,1970.2,1969.8,14.70096]
[1617310810259,0.67,1970.2,1969.8,11.42096]
[1617310810457,0.406,1970.1,1969.8,11.42096]
[1617310810701,0.4,1970.1,1969.5,5.10132494]
[1617310810901,0.294,1970.0,1969.5,0.48132494]
[1617310811101,0.294,1970.0,1969.5,0.39]
[1617310811704,0.294,1970.0,1969.5,8.0053]
[1617310812003,0.294,1970.0,1969.5,19.4853]
[1617310812403,0.294,1970.0,1969.5,23.29278]
[1617310813003,0.294,1970.0,1969.6,7.61519]
[1617310813607,8.0153,1970.1,1969.6,7.61519]
[1617310813805,8.3023,1970.1,1969.6,11.85519]
[1617310814204,0.41,1969.9,1969.6,11.85519]
[1617310814405,8.3023,1970.1,1969.6,11.85519]
[1617310815410,7.6153,1970.1,1970.0,0.39]
[1617310815607,0.28,1970.2,1970.0,0.39]
[1617310815833,4.14366594,1970.4,1969.7,9.85]
[1617310816033,4.14366594,1970.4,1969.7,6.95]
[1617310816234,0.371,1970.3,1969.7,6.95]
[1617310816635,7.98628,1970.3,1969.7,14.97475]
[1617310816835,7.98628,1970.3,1969.7,15.98799559]
[1617310817036,7.98628,1970.3,1969.6,0.14]
[1617310817037,3.81466594,1970.2,1969.6,0.53]
[1617310817238,0.329,1970.1,1969.6,0.14]
[1617310818039,0.4,1970.0,1969.6,0.14]
[1617310819058,7.94503,1970.1,1969.6,0.14]
[1617310819259,8.32503,1970.1,1969.6,0.14]
[1617310820063,12.13969594,1970.1,1969.6,0.14]
[1617310820265,4.51666594,1970.1,1969.6,0.14]
[1617310820469,8.4894,1970.2,1969.8,0.41]
[1617310820684,6.5812,1970.2,1970.0,7.6141]
[1617310822283,0.4,1970.5,1970.0,7.6141]
[1617310822484,0.322,1970.4,1970.0,7.6141]
[1617310822684,0.322,1970.4,1970.0,7.9941]
[1617310823288,0.322,1970.4,1970.0,15.9941]
[1617310823485,0.322,1970.4,1970.0,18.9741]
[1617310823711,0.322,1970.4,1970.0,18.5941]
[1617310823712,0.722,1970.4,1970.0,18.5941]
[1617310823912,0.322,1970.4,1970.0,18.5941]
[1617310824313,0.322,1970.4,1970.1,3.80694]
[1617310825114,0.322,1970.4,1970.2,7.61383]
[1617310828156,0.322,1970.4,1970.3,0.11429188]
[1617310828960,0.322,1970.4,1970.3,7.72790188]
[1617310829760,8.072,1970.4,1970.3,7.17344588]
[1617310830159,0.322,1970.4,1970.3,7.17344588]
[1617310831359,0.712,1970.4,1970.3,7.17344588]
[1617310831788,7.812,1970.4,1970.3,7.17344588]
[1617310832387,7.812,1970.4,1970.1,3.80694]
[1617310832987,7.32960683,1970.4,1970.1,3.80694]
[1617310833393,7.32960683,1970.4,1970.1,11.42117]
[1617310833794,7.32960683,1970.4,1970.0,7.6141]
[1617310833989,7.22960683,1970.4,1969.8,0.39]
[1617310834219,4.12203088,1970.3,1970.1,0.1142953]
[1617310834418,3.80003088,1970.3,1970.1,0.1142953]
[1617310834617,2.82,1970.2,1970.1,0.1142953]
[1617310834815,11.3138,1970.2,1970.1,0.1142953]
[1617310839247,8.4938,1970.2,1970.1,0.1142953]
[1617310839465,8.9038,1970.2,1970.1,0.1142953]
[1617310842719,12.11066088,1970.3,1970.1,0.1142953]
[1617310842919,7.4241,1970.2,1970.1,0.1142953]
[1617310846223,7.0,1970.4,1970.1,0.1142953]
[1617310848043,14.61505,1970.4,1970.1,0.1142953]
[1617310848442,7.0,1970.4,1970.1,0.1142953]
[1617310849844,7.0,1970.4,1970.1,7.7282853]
[1617310850065,22.99555924,1970.6,1970.1,0.1142953]
[1617310850066,15.38098924,1970.6,1970.1,0.1142953]
[1617310850266,15.66798924,1970.6,1970.1,0.1142953]
[1617310850464,16.04798924,1970.6,1970.1,0.1142953]
[1617310850865,12.0774,1970.6,1970.1,0.1142953]
[1617310851067,12.0774,1970.6,1970.2,7.61374]
[1617310852891,19.69161,1970.6,1970.1,0.1142953]
[1617310853091,3.66,1970.5,1970.1,0.1142953]
[1617310853490,19.31161,1970.6,1970.1,0.1142953]
[1617310853890,19.70161,1970.6,1970.1,0.1142953]
[1617310854090,3.04,1970.5,1970.1,7.7285053]
[1617310855091,6.84003088,1970.5,1970.1,7.7285053]
[1617310855517,10.65454,1970.5,1970.1,0.1142953]
[1617310855718,3.4,1970.4,1970.1,0.1142953]
[1617310856519,11.01492,1970.4,1970.1,0.1142953]
[1617310859862,3.4,1970.4,1970.1,0.1142953]
[1617310860065,4.19003088,1970.5,1970.1,0.1142953]
[1617310860261,26.86107,1970.6,1970.1,0.1142953]
[1617310860467,3.80003088,1970.5,1970.1,7.7285453]
[1617310861268,12.0774,1970.6,1970.1,7.7285453]
[1617310862071,15.87743088,1970.6,1970.1,7.7285453]
[1617310862271,3.58,1970.5,1970.1,7.7285453]
[1617310863187,3.48,1970.5,1970.1,7.7285453]
[1617310863589,3.48,1970.5,1970.1,0.1142953]
[1617310863987,3.58,1970.4,1970.1,0.1142953]
[1617310865191,0.39,1970.3,1970.0,7.61464]
[1617310865591,0.39,1970.2,1969.8,3.80727]
[1617310866213,0.39,1970.2,1969.9,7.6149]
[1617310867632,0.308,1970.3,1969.9,7.6149]
[1617310867829,0.698,1970.3,1969.9,7.6149]
[1617310869837,0.308,1970.3,1969.9,8.13920555]
[1617310870338,0.308,1970.3,1969.9,7.72920555]
[1617310872991,0.38,1970.4,1969.9,7.72920555]
[1617310873196,0.38,1970.3,1969.9,7.72920555]
[1617310873603,0.38,1970.3,1969.9,7.86920555]
[1617310874191,0.66,1970.3,1969.9,7.86920555]
[1617310874393,0.28,1970.3,1970.2,3.0]
[1617310874597,7.89464,1970.5,1970.2,3.0]
[1617310874798,11.69467088,1970.5,1970.2,3.0]
[1617310875000,0.28,1970.5,1970.2,3.0]
[1617310875596,0.28,1970.5,1970.2,2.91428847]
[1617310876219,0.28,1970.5,1970.2,10.52796847]
[1617310876420,0.41,1970.4,1970.2,10.52796847]
[1617310877018,5.42,1970.4,1970.2,2.91428847]
[1617310877221,0.41,1970.4,1970.2,2.91428847]
[1617310877818,5.42,1970.4,1970.2,2.91428847]
[1617310878222,0.41,1970.4,1970.2,2.91428847]
[1617310878424,0.28,1970.5,1970.2,2.91428847]
[1617310878844,3.64,1970.4,1970.2,2.91428847]
[1617310879244,0.28,1970.5,1970.2,2.91428847]
[1617310881248,0.28,1970.5,1970.3,7.72740847]
[1617310881469,11.8104,1970.6,1970.3,0.49428847]
[1617310881470,11.4104,1970.6,1970.3,0.49428847]
[1617310881872,11.6904,1970.6,1970.3,0.11428847]
[1617310882270,11.6904,1970.6,1970.3,10.26445847]
[1617310882669,0.41,1970.5,1970.3,0.11428847]
[1617310882870,11.6904,1970.6,1970.3,0.11428847]
[1617310885093,16.4904,1970.6,1970.3,0.11428847]
[1617310885494,11.6904,1970.6,1970.3,0.11428847]
[1617310885895,11.6904,1970.6,1970.3,0.50428847]
[1617310886918,11.6904,1970.6,1970.4,7.61312]
[1617310890750,8.6904,1970.6,1970.4,7.61312]
[1617310891748,8.6904,1970.6,1970.3,0.51428847]
[1617310891978,8.6904,1970.6,1970.3,0.11428847]
[1617310892580,0.28,1970.6,1970.3,0.52428847]
[1617310892779,0.28,1970.6,1970.3,0.11428847]
[1617310896204,5.29,1970.6,1970.3,0.11428847]
[1617310897653,0.28,1970.6,1970.3,0.11428847]
[1617310897855,0.28,1970.6,1970.3,7.72766847]
[1617310898054,0.28,1970.6,1970.3,0.11428847]
[1617310900058,0.69,1970.6,1970.3,0.11428847]
[1617310901460,8.30449,1970.6,1970.3,0.11428847]
[1617310901660,0.28,1970.6,1970.3,0.11428847]
[1617310902474,0.28,1970.6,1970.4,7.61309]
[1617310903676,12.0,1970.9,1970.5,4.21100326]
[1617310903879,12.0,1970.9,1970.7,0.41]
[1617310904075,12.0,1970.9,1970.7,0.55]
[1617310904475,12.0,1970.9,1970.7,11.08202]
[1617310905113,12.0,1970.9,1970.8,20.01019]
[1617310905311,12.0,1970.9,1970.8,24.67019]
[1617310906513,12.0,1970.9,1970.8,25.05019]
[1617310907927,12.0,1970.9,1970.8,30.55019]
[1617310908527,12.0,1970.9,1970.8,41.9254497]
[1617310908729,12.0,1970.9,1970.8,30.55019]
[1617310908931,12.0,1970.9,1970.8,38.55019]
[1617310909328,12.0,1970.9,1970.8,33.05019]
[1617310909934,12.0,1970.9,1970.8,44.4254497]
[1617310910346,12.0,1970.9,1970.8,33.05019]
[1617310910547,12.0,1970.9,1970.8,33.16444773]
[1617310910946,12.0,1970.9,1970.8,44.53970743]
[1617310912154,12.0,1970.9,1970.8,33.16444773]
[1617310913181,12.0,1970.9,1970.8,34.36444773]
[1617310913380,12.0,1970.9,1970.8,39.37444773]
[1617310914981,12.0,1970.9,1970.8,34.36444773]
[1617310915188,12.0,1970.9,1970.8,33.16444773]
[1617310916220,12.0,1970.9,1970.8,20.76444773]
[1617310917726,12.0,1970.9,1970.8,25.91444773]
[1617310918722,12.0,1970.9,1970.8,31.96444773]
[1617310918923,12.0,1970.9,1970.8,25.91444773]
[1617310919723,12.0,1970.9,1970.8,31.11444773]
[1617310919923,12.0,1970.9,1970.8,25.91444773]
[1617310920325,12.0,1970.9,1970.8,25.53444773]
[1617310920955,12.0,1970.9,1970.8,25.94444773]
[1617310921555,12.0,1970.9,1970.8,25.53444773]
[1617310921755,12.0,1970.9,1970.8,20.38444773]
[1617310922155,12.0,1970.9,1970.8,20.77444773]
[1617310922754,12.0,1970.9,1970.8,26.72444773]
[1617310923774,12.0,1970.9,1970.8,26.33444773]
[1617310924575,12.0,1970.9,1970.8,18.33444773]
[1617310924773,12.0,1970.9,1970.8,12.38444773]
[1617310924975,12.0,1970.9,1970.8,11.53545099]
[1617310925776,12.0,1970.9,1970.8,17.86545099]
[1617310925977,12.0,1970.9,1970.8,17.48545099]
[1617310926214,12.0,1970.9,1970.8,21.14545099]
[1617310929230,12.0,1970.9,1970.8,29.14545099]
[1617310929426,12.0,1970.9,1970.8,28.74545099]
[1617310932475,12.0,1970.9,1970.8,29.14545099]
[1617310932676,12.0,1970.9,1970.8,30.81728178]
[1617310933073,12.0,1970.9,1970.8,29.14545099]
[1617310933480,6.667e-05,1971.0,1970.9,36.34]
[1617310933681,6.667e-05,1971.0,1970.9,43.94947]
[1617310933877,6.667e-05,1971.0,1970.9,48.95947]
[1617310934089,8.16175195,1972.2,1971.1,0.09132494]
[1617310934290,0.441,1971.7,1971.6,14.4]